[Event "Biel DQA Blitzn"]
[Site "Biel/Bienne, Switzerland"]
[Date "2022.07.17"]
[Round "12.2"]
[White "Avilova, Yulia"]
[Black "Sumarriva Paulin, Laura"]
[Result "1-0"]
[TimeControl "3 min + 2 sec"]
[WhiteElo "1597"]
[BlackElo "1886"]

1. Nf3 {[%clk 00:03:03]} {[%emt 00:04:47]} d5 {[%clk 00:03:03]} {[%emt
00:00:01]} 2. c4 {[%clk 00:03:04]} e6 {[%clk 00:03:00]} {[%emt 00:00:06]} 3. e3
{[%clk 00:03:06]} c5 {[%clk 00:03:01]} {[%emt 00:00:01]} 4. cxd5 {[%clk
00:03:07]} exd5 {[%clk 00:03:02]} {[%emt 00:00:01]} 5. d4 {[%clk 00:03:08]} Nc6
{[%clk 00:03:02]} {[%emt 00:00:02]} 6. Nc3 {[%clk 00:03:09]} Nf6 {[%emt
00:00:05]} 7. Be2 Bd6 {[%clk 00:02:59]} {[%emt 00:00:03]} 8. dxc5 {[%clk
00:03:12]} Bxc5 {[%clk 00:02:59]} {[%emt 00:00:01]} 9. a3 {[%clk 00:03:13]}
{[%emt 00:00:01]} O-O {[%emt 00:00:05]} 10. b4 {[%emt 00:00:01]} Bb6 {[%clk
00:02:52]} {[%emt 00:00:06]} 11. O-O {[%clk 00:03:15]} {[%emt 00:00:02]} Bg4
{[%clk 00:02:49]} {[%emt 00:00:05]} 12. Bb2 {[%clk 00:03:13]} {[%emt 00:00:04]}
Qd6 {[%clk 00:02:49]} {[%emt 00:00:02]} 13. Qb3 {[%clk 00:03:07]} {[%emt
00:00:08]} Bc7 {[%clk 00:02:48]} {[%emt 00:00:02]} 14. g3 {[%clk 00:03:03]}
{[%emt 00:00:06]} Rad8 {[%clk 00:02:40]} {[%emt 00:00:10]} 15. Rfd1 {[%clk
00:03:04]} a6 {[%clk 00:02:35]} {[%emt 00:00:09]} 16. Rac1 {[%clk 00:03:04]}
{[%emt 00:00:02]} Qe6 {[%clk 00:02:24]} {[%emt 00:00:13]} 17. Ba1 {[%clk
00:02:53]} {[%emt 00:00:13]} Bh3 {[%clk 00:01:54]} {[%emt 00:00:32]} 18. Rd2
{[%clk 00:02:47]} {[%emt 00:00:08]} Rd7 {[%clk 00:01:35]} {[%emt 00:00:21]} 19.
Rcd1 {[%clk 00:02:48]} Rfd8 {[%clk 00:01:36]} {[%emt 00:00:02]} 20. Nd4 {[%clk
00:02:33]} {[%emt 00:00:16]} Nxd4 {[%clk 00:01:24]} {[%emt 00:00:15]} 21. Rxd4
{[%clk 00:02:34]} {[%emt 00:00:01]} Bb6 {[%clk 00:01:20]} {[%emt 00:00:06]} 22.
R4d2 {[%clk 00:02:34]} {[%emt 00:00:02]} Qf5 {[%clk 00:01:10]} {[%emt
00:00:12]} 23. a4 {[%clk 00:02:01]} {[%emt 00:00:35]} d4 {[%clk 00:01:06]}
{[%emt 00:00:06]} 24. exd4 {[%clk 00:01:52]} {[%emt 00:00:12]} Bxd4 {[%clk
00:01:07]} {[%emt 00:00:02]} 25. Bd3 {[%clk 00:01:32]} {[%emt 00:00:21]} Qf3
{[%clk 00:00:57]} {[%emt 00:00:12]} 26. Bf1 {[%clk 00:01:31]} {[%emt 00:00:03]}
Ng4 {[%clk 00:00:42]} {[%emt 00:00:18]} 27. Qc2 {[%clk 00:01:18]} {[%emt
00:00:15]} Bxf1 {[%clk 00:00:23]} {[%emt 00:00:20]} 28. Rxf1 {[%clk 00:01:16]}
{[%emt 00:00:03]} Qf6 {[%clk 00:00:16]} {[%emt 00:00:09]} 29. Ne4 {[%clk
00:01:06]} {[%emt 00:00:12]} Qh6 {[%clk 00:00:14]} {[%emt 00:00:04]} 30. h4
{[%clk 00:01:04]} {[%emt 00:00:04]} Bxf2+ {[%clk 00:00:12]} {[%emt 00:00:05]}
31. Rfxf2 {[%clk 00:01:03]} {[%emt 00:00:02]} Nxf2 {[%clk 00:00:11]} {[%emt
00:00:03]} 32. Rxd7 {[%clk 00:01:03]} {[%emt 00:00:02]} Nh3+ {[%clk 00:00:10]}
{[%emt 00:00:03]} 33. Kg2 {[%clk 00:00:59]} {[%emt 00:00:05]} Nf4+ {[%clk
00:00:10]} {[%emt 00:00:02]} 34. gxf4 {[%clk 00:00:57]} {[%emt 00:00:04]} Qg6+
{[%clk 00:00:11]} {[%emt 00:00:01]} 35. Kf3 {[%clk 00:00:57]} {[%emt 00:00:02]}
Qh5+ {[%clk 00:00:10]} {[%emt 00:00:03]} 36. Ke3 {[%clk 00:00:55]} {[%emt
00:00:03]} Re8 {[%clk 00:00:09]} {[%emt 00:00:03]} 37. Qc3 {[%clk 00:00:40]}
{[%emt 00:00:17]} f6 {[%clk 00:00:07]} {[%emt 00:00:05]} 38. Rxg7+ {[%clk
00:00:29]} {[%emt 00:00:13]} Kh8 {[%clk 00:00:03]} {[%emt 00:00:06]} 39. Qxf6
{[%clk 00:00:26]} {[%emt 00:00:05]} Rxe4+ {[%clk 00:00:03]} {[%emt 00:00:02]}
40. Kxe4 {[%clk 00:00:25]} {[%emt 00:00:03]} Qe2+ {[%clk 00:00:04]} {[%emt
00:00:01]} 41. Kd5 {[%clk 00:00:25]} {[%emt 00:00:02]} Qd3+ {[%clk 00:00:04]}
{[%emt 00:00:02]} 42. Qd4 {[%clk 00:00:21]} {[%emt 00:00:06]} Qf5+ {[%clk
00:00:04]} {[%emt 00:00:01]} 43. Qe5 {[%clk 00:00:22]} {[%emt 00:00:02]} Qd3+
{[%clk 00:00:06]} {[%emt 00:00:01]} 44. Ke6 {[%clk 00:00:23]} Qh3+ {[%clk
00:00:05]} {[%emt 00:00:02]} 45. f5 {[%clk 00:00:23]} {[%emt 00:00:01]} Qb3+
{[%clk 00:00:06]} {[%emt 00:00:01]} 46. Kf6 {[%clk 00:00:21]} {[%emt 00:00:05]}
Qxa4 {[%clk 00:00:04]} {[%emt 00:00:04]} 47. Kg5 {[%clk 00:00:12]} {[%emt
00:00:10]} Qc6 {[%clk 00:00:00]} {[%emt 00:00:05]} 48. Qb8+ {[%clk 00:00:12]}
{[%emt 00:00:03]} 1-0

[Event "Biel DQA Blitzn"]
[Site "Biel/Bienne, Switzerland"]
[Date "2022.07.17"]
[Round "12.3"]
[White "Zhuang, Yongzhe"]
[Black "Moracchini, Margaux"]
[Result "0-1"]
[TimeControl "3 min + 2 sec"]
[WhiteElo "1681"]
[BlackElo "1825"]

1. e4 {[%clk 00:03:02]} c5 {[%clk 00:03:03]} {[%emt 00:00:02]} 2. c3 {[%clk
00:03:03]} {[%emt 00:00:01]} g6 {[%clk 00:03:02]} {[%emt 00:00:04]} 3. d4
{[%clk 00:03:03]} {[%emt 00:00:01]} cxd4 {[%clk 00:03:03]} {[%emt 00:00:01]} 4.
cxd4 {[%clk 00:03:03]} {[%emt 00:00:02]} d5 {[%clk 00:03:04]} 5. exd5 {[%clk
00:03:03]} {[%emt 00:00:03]} Nf6 {[%clk 00:03:02]} {[%emt 00:00:04]} 6. Nf3
{[%clk 00:03:02]} {[%emt 00:00:02]} Bg7 {[%clk 00:03:01]} {[%emt 00:00:03]} 7.
Nc3 {[%clk 00:03:03]} {[%emt 00:00:02]} O-O {[%clk 00:02:53]} {[%emt 00:00:10]}
8. Bc4 {[%clk 00:02:59]} {[%emt 00:00:06]} Nbd7 {[%clk 00:02:52]} {[%emt
00:00:03]} 9. O-O {[%clk 00:02:56]} {[%emt 00:00:05]} Nb6 {[%clk 00:02:53]}
{[%emt 00:00:02]} 10. Bb3 {[%clk 00:02:57]} Nfxd5 {[%clk 00:02:48]} {[%emt
00:00:08]} 11. h3 {[%clk 00:02:55]} {[%emt 00:00:03]} Bf5 {[%clk 00:02:17]}
{[%emt 00:00:33]} 12. Re1 {[%clk 00:02:40]} {[%emt 00:00:17]} Rc8 {[%clk
00:02:15]} {[%emt 00:00:05]} 13. Bd2 {[%clk 00:02:32]} {[%emt 00:00:10]} Nxc3
{[%clk 00:01:52]} {[%emt 00:00:25]} 14. bxc3 {[%clk 00:02:32]} {[%emt
00:00:02]} Nc4 {[%clk 00:01:44]} {[%emt 00:00:10]} 15. Bg5 {[%clk 00:02:26]}
{[%emt 00:00:06]} Re8 {[%clk 00:01:35]} {[%emt 00:00:12]} 16. Qe2 {[%clk
00:02:23]} {[%emt 00:00:05]} Be6 {[%clk 00:01:32]} {[%emt 00:00:05]} 17. Rad1
{[%clk 00:02:20]} {[%emt 00:00:05]} h6 {[%clk 00:01:08]} {[%emt 00:00:27]} 18.
Bc1 {[%clk 00:02:19]} {[%emt 00:00:03]} Bd5 {[%clk 00:01:04]} {[%emt 00:00:07]}
19. Ne5 {[%clk 00:01:47]} {[%emt 00:00:33]} b5 {[%clk 00:01:05]} {[%emt
00:00:01]} 20. a4 {[%clk 00:01:36]} {[%emt 00:00:14]} a6 {[%clk 00:00:55]}
{[%emt 00:00:12]} 21. axb5 {[%clk 00:01:33]} {[%emt 00:00:04]} axb5 {[%clk
00:00:57]} 22. Nd3 {[%clk 00:01:31]} {[%emt 00:00:04]} Qc7 {[%clk 00:00:53]}
{[%emt 00:00:06]} 23. Nb4 {[%clk 00:01:31]} {[%emt 00:00:02]} Bb7 {[%clk
00:00:38]} {[%emt 00:00:17]} 24. Qg4 {[%clk 00:00:48]} {[%emt 00:00:45]} e6
{[%clk 00:00:34]} {[%emt 00:00:07]} 25. Bf4 {[%clk 00:00:46]} {[%emt 00:00:03]}
Qb6 {[%clk 00:00:25]} {[%emt 00:00:12]} 26. Qg3 {[%clk 00:00:34]} {[%emt
00:00:14]} Na5 {[%clk 00:00:20]} {[%emt 00:00:07]} 27. Bc2 {[%clk 00:00:31]}
{[%emt 00:00:05]} Nc4 {[%clk 00:00:18]} {[%emt 00:00:04]} 28. Bd3 {[%clk
00:00:30]} {[%emt 00:00:02]} Nb2 {[%clk 00:00:19]} {[%emt 00:00:02]} 29. Rc1
{[%clk 00:00:28]} {[%emt 00:00:04]} Nxd3 {[%clk 00:00:20]} {[%emt 00:00:01]} 30.
Nxd3 {[%clk 00:00:28]} {[%emt 00:00:03]} Bd5 {[%clk 00:00:21]} {[%emt
00:00:02]} 31. Ne5 {[%clk 00:00:28]} {[%emt 00:00:02]} Qb7 {[%clk 00:00:17]}
{[%emt 00:00:06]} 32. Ng4 {[%clk 00:00:27]} {[%emt 00:00:02]} Kh7 {[%clk
00:00:17]} {[%emt 00:00:03]} 33. Be5 {[%clk 00:00:27]} {[%emt 00:00:02]} f5
{[%clk 00:00:15]} {[%emt 00:00:04]} 34. Nf6+ {[%clk 00:00:22]} {[%emt
00:00:07]} Bxf6 {[%clk 00:00:17]} 35. Bxf6 {[%clk 00:00:22]} {[%emt 00:00:01]}
Qc7 {[%clk 00:00:16]} {[%emt 00:00:02]} 36. Be5 {[%clk 00:00:23]} {[%emt
00:00:01]} Qf7 {[%clk 00:00:17]} {[%emt 00:00:02]} 37. Rcd1 {[%clk 00:00:21]}
{[%emt 00:00:03]} g5 {[%clk 00:00:14]} {[%emt 00:00:06]} 38. h4 {[%clk
00:00:14]} {[%emt 00:00:09]} f4 {[%clk 00:00:13]} {[%emt 00:00:03]} 39. Qd3+
{[%clk 00:00:11]} {[%emt 00:00:04]} Qg6 {[%clk 00:00:12]} {[%emt 00:00:04]} 40.
hxg5 {[%clk 00:00:11]} {[%emt 00:00:03]} Qxd3 {[%clk 00:00:13]} {[%emt
00:00:01]} 41. Rxd3 {[%clk 00:00:11]} {[%emt 00:00:01]} hxg5 {[%clk 00:00:14]}
42. Rh3+ {[%clk 00:00:12]} {[%emt 00:00:01]} Kg6 {[%clk 00:00:15]} {[%emt
00:00:02]} 43. Rd3 {[%clk 00:00:07]} {[%emt 00:00:06]} Ra8 {[%clk 00:00:13]}
{[%emt 00:00:04]} 44. f3 {[%clk 00:00:07]} {[%emt 00:00:02]} Ra2 {[%clk
00:00:14]} {[%emt 00:00:01]} 45. Rdd1 {[%clk 00:00:07]} {[%emt 00:00:03]} Rc2
{[%clk 00:00:14]} {[%emt 00:00:02]} 46. Rc1 {[%clk 00:00:06]} {[%emt 00:00:02]}
Ra2 {[%clk 00:00:13]} {[%emt 00:00:03]} 47. Bd6 {[%clk 00:00:05]} {[%emt
00:00:04]} Rea8 {[%clk 00:00:13]} {[%emt 00:00:02]} 48. Bb4 {[%clk 00:00:06]}
{[%emt 00:00:01]} Rd2 {[%clk 00:00:10]} {[%emt 00:00:05]} 49. Kh1 {[%clk
00:00:00]} {[%emt 00:00:04]} Rh8+ {[%clk 00:00:10]} {[%emt 00:00:03]} 50. Kg1
{[%clk 00:00:00]} Rb2 {[%clk 00:00:10]} {[%emt 00:00:02]} 0-1

[Event "Biel DQA Blitzn"]
[Site "Biel/Bienne, Switzerland"]
[Date "2022.07.17"]
[Round "12.4"]
[White "Tamrazyan, Gohar"]
[Black "Ciarletta, Iris"]
[Result "0-1"]
[TimeControl "3 min + 2 sec"]
[WhiteElo "1733"]
[BlackElo "1481"]

1. d4 {[%clk 00:03:02]} Nf6 {[%clk 00:03:03]} {[%emt 00:00:02]} 2. Nc3 {[%clk
00:03:04]} d5 {[%clk 00:02:59]} {[%emt 00:00:06]} 3. Bf4 {[%clk 00:03:05]}
{[%emt 00:00:01]} e6 {[%clk 00:02:59]} {[%emt 00:00:02]} 4. Nb5 {[%clk
00:03:06]} Na6 {[%clk 00:02:57]} {[%emt 00:00:03]} 5. e3 {[%clk 00:03:07]}
{[%emt 00:00:01]} Bd7 {[%clk 00:02:50]} {[%emt 00:00:09]} 6. Nf3 {[%clk
00:02:56]} {[%emt 00:00:12]} c6 {[%clk 00:02:50]} {[%emt 00:00:02]} 7. Nc3
{[%clk 00:02:57]} {[%emt 00:00:01]} Nc7 {[%clk 00:02:48]} {[%emt 00:00:04]} 8.
Ne5 {[%clk 00:02:46]} {[%emt 00:00:13]} Bb4 {[%clk 00:02:39]} {[%emt 00:00:11]}
9. Bd3 {[%clk 00:02:43]} {[%emt 00:00:05]} Nb5 {[%clk 00:02:27]} {[%emt
00:00:14]} 10. Qd2 {[%clk 00:02:13]} {[%emt 00:00:32]} Ne4 {[%clk 00:02:13]}
{[%emt 00:00:15]} 11. Bxe4 {[%clk 00:02:08]} {[%emt 00:00:07]} dxe4 {[%clk
00:02:13]} {[%emt 00:00:02]} 12. a3 {[%clk 00:02:00]} {[%emt 00:00:10]} Bxc3
{[%clk 00:02:12]} {[%emt 00:00:03]} 13. bxc3 {[%clk 00:02:01]} {[%emt
00:00:01]} f6 {[%clk 00:02:06]} {[%emt 00:00:07]} 14. Nc4 {[%clk 00:01:51]}
{[%emt 00:00:12]} O-O {[%clk 00:01:53]} {[%emt 00:00:15]} 15. O-O {[%clk
00:01:38]} {[%emt 00:00:15]} Nc7 {[%clk 00:01:41]} {[%emt 00:00:14]} 16. Nd6
{[%clk 00:01:35]} {[%emt 00:00:05]} f5 {[%clk 00:01:36]} {[%emt 00:00:07]} 17.
Nxb7 {[%clk 00:01:33]} {[%emt 00:00:04]} Qc8 {[%clk 00:01:27]} {[%emt
00:00:10]} 18. Nc5 {[%clk 00:01:31]} {[%emt 00:00:04]} Nd5 {[%clk 00:01:26]}
{[%emt 00:00:03]} 19. Bd6 {[%clk 00:01:21]} {[%emt 00:00:12]} Rd8 {[%clk
00:01:26]} {[%emt 00:00:02]} 20. c4 {[%clk 00:01:20]} {[%emt 00:00:03]} Nb6
{[%clk 00:01:24]} {[%emt 00:00:03]} 21. Qb4 {[%clk 00:01:07]} {[%emt 00:00:15]}
Be8 {[%clk 00:01:22]} {[%emt 00:00:04]} 22. Be5 {[%clk 00:00:47]} {[%emt
00:00:22]} Bf7 {[%clk 00:01:21]} {[%emt 00:00:03]} 23. a4 {[%clk 00:00:42]}
{[%emt 00:00:07]} Nd7 {[%clk 00:01:19]} {[%emt 00:00:03]} 24. Nxd7 {[%clk
00:00:38]} {[%emt 00:00:06]} Rxd7 {[%clk 00:01:18]} {[%emt 00:00:03]} 25. Rfd1
{[%clk 00:00:38]} {[%emt 00:00:02]} Rb7 {[%clk 00:01:18]} {[%emt 00:00:02]} 26.
Qc5 {[%clk 00:00:33]} {[%emt 00:00:07]} h6 {[%clk 00:01:14]} {[%emt 00:00:06]}
27. Rab1 {[%clk 00:00:29]} {[%emt 00:00:06]} a6 {[%clk 00:01:10]} {[%emt
00:00:07]} 28. Rb3 {[%clk 00:00:26]} {[%emt 00:00:04]} Raa7 {[%clk 00:01:07]}
{[%emt 00:00:05]} 29. Rdb1 {[%clk 00:00:26]} {[%emt 00:00:02]} Rxb3 {[%clk
00:01:07]} {[%emt 00:00:02]} 30. cxb3 {[%clk 00:00:27]} Rb7 {[%clk 00:01:05]}
{[%emt 00:00:04]} 31. Qa3 {[%clk 00:00:26]} {[%emt 00:00:03]} Qd7 {[%clk
00:01:02]} {[%emt 00:00:05]} 32. b4 {[%clk 00:00:27]} {[%emt 00:00:02]} g5
{[%clk 00:00:58]} {[%emt 00:00:06]} 33. b5 {[%clk 00:00:23]} {[%emt 00:00:05]}
axb5 {[%clk 00:00:58]} {[%emt 00:00:02]} 34. axb5 {[%clk 00:00:24]} {[%emt
00:00:01]} cxb5 {[%clk 00:00:58]} {[%emt 00:00:02]} 35. Qa8+ {[%clk 00:00:17]}
{[%emt 00:00:09]} Kh7 {[%clk 00:00:53]} {[%emt 00:00:06]} 36. Qh8+ {[%clk
00:00:16]} {[%emt 00:00:03]} Kg6 {[%clk 00:00:54]} {[%emt 00:00:01]} 37. Qg7+
{[%clk 00:00:16]} {[%emt 00:00:02]} Kh5 {[%clk 00:00:55]} {[%emt 00:00:01]} 38.
h3 {[%clk 00:00:13]} {[%emt 00:00:06]} bxc4 {[%clk 00:00:53]} {[%emt 00:00:03]}
39. Rf1 {[%clk 00:00:09]} {[%emt 00:00:05]} Bg6 {[%clk 00:00:50]} {[%emt
00:00:05]} 40. Qh8 {[%clk 00:00:06]} {[%emt 00:00:05]} Qe8 {[%clk 00:00:49]}
{[%emt 00:00:03]} 41. g4+ {[%clk 00:00:05]} {[%emt 00:00:03]} fxg4 {[%clk
00:00:48]} {[%emt 00:00:03]} 42. hxg4+ {[%clk 00:00:06]} Kxg4 {[%clk 00:00:46]}
{[%emt 00:00:04]} 43. Qxh6 {[%clk 00:00:07]} {[%emt 00:00:01]} Rh7 {[%clk
00:00:42]} {[%emt 00:00:06]} 44. f3+ {[%clk 00:00:08]} {[%emt 00:00:01]} exf3
{[%clk 00:00:39]} {[%emt 00:00:04]} 0-1

[ePGN "0.1;DGT LiveChess/2.2.5"]

[Event "Biel DQA Blitzn"]
[Site "Biel/Bienne, Switzerland"]
[Date "2022.07.17"]
[Round "13.1"]
[White "Tamrazyan, Gohar"]
[Black "Cornileau, Juliette"]
[Result "0-1"]
[TimeControl "3 min + 2 sec"]
[WhiteElo "1733"]
[BlackElo "1653"]

1. d4 {[%clk 00:03:03]} Nf6 {[%clk 00:03:03]} {[%emt 00:00:02]} 2. Nc3 {[%clk
00:03:04]} d5 {[%clk 00:03:00]} {[%emt 00:00:05]} 3. Bf4 {[%clk 00:03:05]} e6
{[%clk 00:02:55]} {[%emt 00:00:08]} 4. Nb5 {[%clk 00:03:06]} Na6 {[%clk
00:02:48]} {[%emt 00:00:08]} 5. e3 {[%clk 00:03:07]} c6 {[%clk 00:02:42]}
{[%emt 00:00:09]} 6. Nc3 {[%clk 00:03:08]} {[%emt 00:00:01]} Nc7 {[%clk
00:02:37]} {[%emt 00:00:07]} 7. a3 {[%clk 00:03:07]} {[%emt 00:00:03]} Bd6
{[%clk 00:02:35]} {[%emt 00:00:03]} 8. Nh3 {[%clk 00:02:58]} {[%emt 00:00:10]}
O-O {[%clk 00:02:31]} {[%emt 00:00:06]} 9. Bd3 {[%clk 00:02:57]} {[%emt
00:00:03]} Re8 {[%clk 00:02:28]} {[%emt 00:00:05]} 10. O-O {[%clk 00:02:56]}
{[%emt 00:00:02]} Qe7 {[%clk 00:02:06]} {[%emt 00:00:25]} 11. Kh1 {[%clk
00:02:45]} {[%emt 00:00:13]} e5 {[%clk 00:02:03]} {[%emt 00:00:05]} 12. dxe5
{[%clk 00:02:41]} {[%emt 00:00:06]} Bxe5 {[%clk 00:02:04]} {[%emt 00:00:01]} 13.
Bxe5 {[%clk 00:02:09]} {[%emt 00:00:34]} Qxe5 {[%clk 00:02:04]} {[%emt
00:00:01]} 14. Nf4 {[%clk 00:02:04]} {[%emt 00:00:07]} d4 {[%clk 00:01:45]}
{[%emt 00:00:21]} 15. Nce2 {[%clk 00:01:35]} {[%emt 00:00:30]} dxe3 {[%clk
00:01:46]} {[%emt 00:00:02]} 16. fxe3 {[%clk 00:01:36]} {[%emt 00:00:01]} Qxe3
{[%clk 00:01:39]} {[%emt 00:00:09]} 17. Rf3 {[%clk 00:01:37]} Qc5 {[%clk
00:01:37]} {[%emt 00:00:05]} 18. h3 {[%clk 00:01:31]} {[%emt 00:00:08]} Be6
{[%clk 00:01:20]} {[%emt 00:00:19]} 19. Nxe6 {[%clk 00:01:20]} {[%emt
00:00:13]} Nxe6 {[%clk 00:01:21]} {[%emt 00:00:01]} 20. Nf4 {[%clk 00:01:16]}
{[%emt 00:00:06]} Ng5 {[%clk 00:01:00]} {[%emt 00:00:23]} 21. Rg3 {[%clk
00:01:05]} {[%emt 00:00:14]} Nge4 {[%clk 00:00:40]} {[%emt 00:00:22]} 22. Bxe4
{[%clk 00:01:05]} {[%emt 00:00:02]} Nxe4 {[%clk 00:00:41]} 23. Rf3 {[%clk
00:00:20]} {[%emt 00:00:48]} Nf2+ {[%clk 00:00:42]} 24. Rxf2 {[%clk 00:00:21]}
{[%emt 00:00:01]} Qxf2 {[%clk 00:00:43]} 25. Nd3 {[%clk 00:00:16]} {[%emt
00:00:06]} Qg3 {[%clk 00:00:43]} {[%emt 00:00:02]} 26. Qf3 {[%clk 00:00:16]}
{[%emt 00:00:03]} Qxf3 {[%clk 00:00:43]} {[%emt 00:00:02]} 27. gxf3 {[%clk
00:00:17]} Re2 {[%clk 00:00:44]} {[%emt 00:00:01]} 28. Rc1 {[%clk 00:00:17]}
{[%emt 00:00:03]} Rae8 {[%clk 00:00:36]} {[%emt 00:00:10]} 29. f4 {[%clk
00:00:13]} {[%emt 00:00:06]} f6 {[%clk 00:00:28]} {[%emt 00:00:10]} 30. b4
{[%clk 00:00:11]} {[%emt 00:00:04]} R8e3 {[%clk 00:00:24]} {[%emt 00:00:06]} 31.
Nc5 {[%clk 00:00:10]} {[%emt 00:00:03]} Rxh3+ {[%clk 00:00:22]} {[%emt
00:00:04]} 32. Kg1 {[%clk 00:00:12]} b6 {[%clk 00:00:18]} {[%emt 00:00:06]} 33.
Nd3 {[%clk 00:00:11]} {[%emt 00:00:02]} Rhh2 {[%clk 00:00:16]} {[%emt
00:00:04]} 34. a4 {[%clk 00:00:07]} {[%emt 00:00:06]} Rhg2+ {[%clk 00:00:16]}
35. Kf1 {[%clk 00:00:09]} Rxc2 {[%clk 00:00:17]} {[%emt 00:00:02]} 36. Rxc2
{[%clk 00:00:10]} {[%emt 00:00:01]} Rxc2 {[%clk 00:00:18]} 37. a5 {[%clk
00:00:09]} {[%emt 00:00:03]} bxa5 {[%clk 00:00:19]} {[%emt 00:00:02]} 38. bxa5
{[%clk 00:00:10]} Ra2 {[%clk 00:00:18]} {[%emt 00:00:02]} 39. Nb4 {[%clk
00:00:10]} {[%emt 00:00:02]} Rxa5 {[%clk 00:00:19]} {[%emt 00:00:01]} 40. Nxc6
{[%clk 00:00:12]} Ra4 {[%clk 00:00:13]} {[%emt 00:00:05]} 0-1

[Event "Biel DQA Blitzn"]
[Site "Biel/Bienne, Switzerland"]
[Date "2022.07.17"]
[Round "13.2"]
[White "Ciarletta, Iris"]
[Black "Zhuang, Yongzhe"]
[Result "1-0"]
[TimeControl "3 min + 2 sec"]
[WhiteElo "1481"]
[BlackElo "1681"]

1. d4 {[%clk 00:03:02]} {[%emt 00:00:02]} d5 {[%clk 00:03:03]} 2. c4 {[%clk
00:03:03]} {[%emt 00:00:01]} dxc4 {[%clk 00:03:04]} {[%emt 00:00:02]} 3. e4
{[%clk 00:03:04]} b5 {[%clk 00:03:05]} 4. Nf3 {[%clk 00:03:00]} {[%emt
00:00:06]} Bb7 {[%clk 00:02:57]} {[%emt 00:00:10]} 5. Nbd2 {[%clk 00:03:00]}
{[%emt 00:00:03]} e6 {[%clk 00:02:53]} {[%emt 00:00:06]} 6. a4 {[%clk
00:02:52]} {[%emt 00:00:09]} a6 {[%clk 00:02:50]} {[%emt 00:00:06]} 7. axb5
{[%clk 00:02:51]} {[%emt 00:00:03]} axb5 {[%clk 00:02:50]} {[%emt 00:00:02]} 8.
Rxa8 {[%clk 00:02:51]} {[%emt 00:00:03]} Bxa8 {[%clk 00:02:50]} {[%emt
00:00:01]} 9. Qc2 {[%clk 00:02:38]} {[%emt 00:00:15]} Nc6 {[%clk 00:02:41]}
{[%emt 00:00:11]} 10. b3 {[%clk 00:02:24]} {[%emt 00:00:16]} Nxd4 {[%clk
00:02:22]} {[%emt 00:00:20]} 11. Nxd4 {[%clk 00:02:24]} {[%emt 00:00:02]} Qxd4
{[%clk 00:02:22]} {[%emt 00:00:02]} 12. Bb2 {[%clk 00:02:21]} {[%emt 00:00:05]}
Qd8 {[%clk 00:02:06]} {[%emt 00:00:18]} 13. bxc4 {[%clk 00:02:20]} {[%emt
00:00:04]} b4 {[%clk 00:02:00]} {[%emt 00:00:08]} 14. c5 {[%clk 00:02:05]}
{[%emt 00:00:16]} c6 {[%clk 00:01:42]} {[%emt 00:00:19]} 15. f3 {[%clk
00:01:59]} {[%emt 00:00:08]} Nf6 {[%clk 00:01:42]} {[%emt 00:00:02]} 16. Be2
{[%clk 00:01:55]} {[%emt 00:00:06]} Be7 {[%clk 00:01:42]} {[%emt 00:00:02]} 17.
O-O {[%clk 00:01:54]} {[%emt 00:00:03]} O-O {[%clk 00:01:42]} {[%emt 00:00:02]}
18. Rb1 {[%clk 00:01:49]} {[%emt 00:00:08]} Qa5 {[%clk 00:01:35]} {[%emt
00:00:09]} 19. Nb3 {[%clk 00:01:45]} {[%emt 00:00:05]} Qc7 {[%clk 00:01:35]}
{[%emt 00:00:02]} 20. Bc1 {[%clk 00:01:36]} {[%emt 00:00:12]} Nd7 {[%clk
00:01:27]} {[%emt 00:00:10]} 21. Be3 {[%clk 00:01:29]} {[%emt 00:00:09]} Ne5
{[%clk 00:01:11]} {[%emt 00:00:18]} 22. Nd2 {[%clk 00:01:19]} {[%emt 00:00:12]}
Qa5 {[%clk 00:00:58]} {[%emt 00:00:15]} 23. Nc4 {[%clk 00:01:10]} {[%emt
00:00:11]} Nxc4 {[%clk 00:00:57]} {[%emt 00:00:03]} 24. Qxc4 {[%clk 00:01:10]}
{[%emt 00:00:02]} Rb8 {[%clk 00:00:49]} {[%emt 00:00:10]} 25. Bf4 {[%clk
00:01:11]} {[%emt 00:00:02]} Rd8 {[%clk 00:00:48]} {[%emt 00:00:03]} 26. Be3
{[%clk 00:01:07]} {[%emt 00:00:06]} Rb8 {[%clk 00:00:46]} {[%emt 00:00:04]} 27.
Rb2 {[%clk 00:00:50]} {[%emt 00:00:20]} Qa1+ {[%clk 00:00:44]} {[%emt
00:00:04]} 28. Qc1 {[%clk 00:00:47]} {[%emt 00:00:04]} Qa3 {[%clk 00:00:42]}
{[%emt 00:00:04]} 29. Bc4 {[%clk 00:00:30]} {[%emt 00:00:19]} Bf6 {[%clk
00:00:39]} {[%emt 00:00:06]} 30. Rb1 {[%clk 00:00:19]} {[%emt 00:00:14]} Qxc1+
{[%clk 00:00:32]} {[%emt 00:00:09]} 31. Rxc1 {[%clk 00:00:20]} {[%emt
00:00:01]} b3 {[%clk 00:00:33]} 32. Rb1 {[%clk 00:00:21]} {[%emt 00:00:01]} b2
{[%clk 00:00:34]} 33. Kf2 {[%clk 00:00:16]} {[%emt 00:00:07]} h6 {[%clk
00:00:33]} {[%emt 00:00:03]} 34. f4 {[%clk 00:00:15]} {[%emt 00:00:02]} e5
{[%clk 00:00:33]} {[%emt 00:00:02]} 35. f5 {[%clk 00:00:15]} {[%emt 00:00:03]}
Rb4 {[%clk 00:00:32]} {[%emt 00:00:03]} 36. Bd3 {[%clk 00:00:13]} {[%emt
00:00:04]} Rb3 {[%clk 00:00:32]} {[%emt 00:00:02]} 37. Ke2 {[%clk 00:00:11]}
{[%emt 00:00:04]} Bb7 {[%clk 00:00:31]} {[%emt 00:00:02]} 38. Bc4 {[%clk
00:00:08]} {[%emt 00:00:06]} Rb4 {[%clk 00:00:31]} {[%emt 00:00:02]} 39. Bd3
{[%clk 00:00:09]} {[%emt 00:00:01]} Bc8 {[%clk 00:00:29]} {[%emt 00:00:04]} 40.
Bd2 {[%emt 00:00:03]} Rb3 {[%clk 00:00:20]} {[%emt 00:00:10]} 41. Bc4 {[%clk
00:00:11]} {[%emt 00:00:01]} Rb4 {[%clk 00:00:20]} {[%emt 00:00:01]} 42. Bxb4
{[%clk 00:00:12]} {[%emt 00:00:01]} 1-0